bitfinex/quotes_ETHUSD_20250804
["timestamp","ask_amount","ask_price","bid_price","bid_amount"]
[1754302503822,0.9319,3565.0,3564.9,5.80512777]
[1754302504475,0.9319,3565.0,3564.9,5.94512777]
[1754302505515,0.9319,3565.0,3564.9,6.16065112]
[1754302506603,0.9319,3565.0,3564.9,3.21552335]
[1754302507422,0.9319,3565.0,3564.9,6.02065112]
[1754302510837,0.9319,3565.0,3564.9,6.16065112]
[1754302511537,0.14,3565.7,3565.3,2.8047852]
[1754302511740,0.8284,3565.7,3565.4,2.80471269]
[1754302512044,0.452,3565.6,3565.3,2.80477833]
[1754302512209,0.9319,3565.6,3565.3,2.80477833]
[1754302512543,0.9319,3565.6,3565.2,0.14]
[1754302512703,0.9319,3565.5,3565.3,2.80481305]
[1754302512914,0.8284,3565.7,3565.3,2.80481305]
[1754302513245,0.9319,3565.4,3565.3,2.80481305]
[1754302514143,0.9319,3565.4,3565.2,0.14]
[1754302514350,0.9319,3565.3,3565.2,0.14]
[1754302514912,0.9319,3565.3,3565.2,2.94489173]
[1754302515338,0.9319,3565.3,3565.2,0.14]
[1754302515866,0.9319,3565.3,3565.2,2.94489173]
[1754302516848,0.9319,3565.3,3565.2,0.14]
[1754302517756,1.0719,3565.3,3564.9,0.21552335]
[1754302517956,1.0719,3565.3,3564.8,3.0]
[1754302517957,0.14,3565.1,3564.8,5.80520424]
[1754302518320,0.9319,3565.0,3564.7,5.80525547]
[1754302518544,0.14,3565.1,3564.6,0.14]
[1754302518545,0.9319,3564.9,3564.6,2.94535243]
[1754302518870,0.9319,3564.8,3564.7,5.80528515]
[1754302519018,0.9319,3564.8,3564.7,2.80528515]
[1754302519220,0.9319,3564.8,3564.6,3.14]
[1754302519533,0.9319,3564.7,3564.6,3.35265581]
[1754302520021,0.9319,3564.7,3564.6,0.21265581]
[1754302520357,0.9319,3564.7,3564.2,3.0]
[1754302520358,5.3309,3564.7,3564.2,2.80567358]
[1754302520566,0.53309,3564.6,3564.1,0.14]
[1754302520768,0.9319,3564.5,3564.1,0.14]
[1754302521054,0.9319,3564.4,3564.1,0.14]
[1754302521357,0.53309,3564.6,3564.1,0.14]
[1754302521358,0.9319,3564.3,3564.1,0.14]
[1754302521516,0.53309,3564.6,3564.1,2.94573653]
[1754302521713,0.9319,3564.2,3564.1,5.94573653]
[1754302522363,0.9319,3564.2,3564.1,3.14]
[1754302522567,0.9319,3564.2,3564.1,3.0]
[1754302523052,0.9319,3564.2,3564.1,3.21194832]
[1754302527474,0.9319,3564.2,3564.1,0.21194832]
[1754302527960,0.9319,3564.2,3564.1,3.0]
[1754302528262,0.9319,3564.2,3563.9,0.14]
[1754302528562,0.9237,3564.1,3564.0,3.0]
[1754302528726,0.9237,3564.1,3563.9,0.14]
[1754302528922,0.4913,3564.0,3563.9,3.14]
[1754302529126,0.9237,3564.0,3563.9,3.14]
[1754302529863,0.9237,3564.0,3563.9,0.14]
[1754302530063,0.14,3564.5,3563.9,2.94591486]
[1754302530263,0.9237,3564.4,3563.9,2.94591486]
[1754302530422,0.9237,3564.3,3563.9,2.94591486]
[1754302530627,0.9237,3564.2,3563.9,2.94591486]
[1754302530828,0.14,3564.5,3563.9,2.94591486]
[1754302531053,0.9237,3564.1,3563.9,3.15292421]
[1754302531240,0.4913,3564.3,3563.9,3.15292421]
[1754302531444,0.9237,3564.2,3563.9,3.15292421]
[1754302531651,0.4913,3564.1,3564.0,3.0]
[1754302532193,0.14,3564.5,3563.9,0.34700935]
[1754302532364,0.14,3564.5,3563.9,0.20700935]
[1754302532365,0.9237,3564.1,3563.9,0.20700935]
[1754302532661,0.95877295,3564.0,3563.7,0.14]
[1754302532955,0.9237,3563.9,3563.7,0.14]
[1754302533157,0.03507492,3563.8,3563.7,0.14]
[1754302533564,0.95877492,3563.8,3563.7,0.21211959]
[1754302533862,0.9237,3563.8,3563.6,0.002]
[1754302534028,0.9237,3563.7,3563.6,0.002]
[1754302534967,1.45607,3563.7,3563.6,0.20759406]
[1754302535271,1.59607,3563.7,3563.6,0.002]
[1754302537068,0.4913,3563.9,3563.6,0.2111337]
[1754302537301,4.26,3563.7,3563.6,0.2111337]
[1754302537603,5.1837,3563.7,3563.6,0.2111337]
[1754302538493,4.6924,3563.7,3563.6,0.2111337]
[1754302538700,4.26,3563.7,3563.6,0.2111337]
[1754302538902,1.0637,3564.0,3563.6,0.2111337]
[1754302539071,4.26,3563.9,3563.7,0.4915]
[1754302539477,4.26,3563.9,3563.6,0.2111337]
[1754302539677,4.26,3563.9,3563.6,0.7026337]
[1754302540908,4.26,3563.9,3563.7,0.4915]
[1754302541112,4.26,3563.9,3563.7,0.6315]
[1754302541314,4.7513,3563.9,3563.7,0.14]
[1754302541486,4.7513,3563.9,3563.6,0.2111337]
[1754302541487,0.9237,3563.8,3563.6,0.2111337]
[1754302541693,4.26,3563.9,3563.6,0.3511337]
[1754302541896,4.26,3563.9,3563.7,0.4915]
[1754302542115,4.26,3563.9,3563.6,0.3511337]
[1754302542600,5.1837,3563.9,3563.6,0.3511337]
[1754302543332,4.7513,3563.9,3563.6,0.3511337]
[1754302543481,4.26,3563.9,3563.6,0.3511337]
[1754302543813,0.14,3563.7,3563.6,0.2111337]
[1754302543992,1.0637,3563.7,3563.6,0.2111337]
[1754302544380,5.6237,3563.9,3563.6,0.2111337]
[1754302544598,0.14,3563.8,3563.6,0.2111337]
[1754302545185,4.26,3563.9,3563.6,0.2111337]
[1754302545383,5.1837,3563.9,3563.6,0.2111337]
[1754302545618,0.4913,3563.8,3563.6,0.2111337]
[1754302546184,4.6924,3563.9,3563.6,0.2111337]
[1754302546185,0.5263759,3563.7,3563.6,0.2111337]
[1754302546537,0.4913,3563.7,3563.6,0.2111337]
[1754302546688,0.9237,3563.7,3563.6,0.2111337]
[1754302547332,1.0637,3563.7,3563.6,0.2111337]
[1754302553477,3.86977234,3563.7,3563.6,0.2111337]
[1754302553766,3.40385104,3563.7,3563.6,0.2111337]
[1754302553973,6.17484748,3563.7,3563.6,0.2111337]
[1754302555332,3.36877514,3563.7,3563.6,0.2111337]
[1754302555567,6.17484748,3563.7,3563.6,0.002]
[1754302555767,6.72484748,3563.7,3563.6,0.002]
[1754302557150,3.36877514,3563.7,3563.6,0.002]
[1754302557356,3.40385104,3563.7,3563.6,0.002]
[1754302558087,6.20992338,3563.7,3563.6,0.002]
[1754302558259,6.17484748,3563.7,3563.6,0.002]
[1754302558660,10.43484748,3563.7,3563.6,0.002]
[1754302559101,6.17484748,3563.7,3563.6,0.002]
[1754302559302,10.43484748,3563.7,3563.6,0.002]
[1754302559910,10.98484748,3563.7,3563.6,0.002]
[1754302560795,10.43484748,3563.7,3563.6,0.002]
[1754302561693,10.98484748,3563.7,3563.6,0.002]
[1754302561904,13.98484748,3563.7,3563.6,0.002]
[1754302562336,13.98484748,3563.7,3563.2,0.21368661]
[1754302562337,17.99056511,3563.3,3563.2,0.21368661]
[1754302562601,24.7795667,3563.3,3563.2,0.21368661]
[1754302562762,2.80672436,3562.9,3562.1,0.473]
[1754302562961,0.14,3562.3,3562.1,0.473]
[1754302563198,4.26,3562.2,3562.1,0.4277]
[1754302563823,4.26,3562.2,3562.1,0.9007]
[1754302563968,4.26,3562.2,3562.1,0.473]
[1754302564614,4.26,3562.2,3562.1,0.68038797]
[1754302564817,4.26,3562.2,3562.1,0.20738797]
[1754302565311,4.26,3562.2,3561.8,0.473]
[1754302565464,4.26,3562.2,3561.7,0.14]
[1754302565465,4.26,3562.2,3561.7,0.5677]
[1754302565776,4.26,3562.2,3561.9,0.473]
[1754302565975,0.03509165,3562.1,3561.9,0.473]
[1754302566373,0.97050081,3562.1,3561.9,0.20990805]
[1754302566588,0.97050081,3562.1,3561.4,0.002]
[1754302566589,1.0799,3562.0,3561.5,0.14]
[1754302566763,4.29609362,3561.9,3561.5,0.14]
[1754302566965,4.29609362,3561.9,3561.5,0.613]
[1754302567278,4.261,3561.9,3561.6,0.473]
[1754302567859,4.261,3561.9,3561.6,0.6863198]
[1754302569591,4.261,3561.9,3561.6,0.2133198]
[1754302569795,4.261,3561.9,3561.7,3.70832829]
[1754302570013,4.261,3561.9,3561.8,0.9007]
[1754302570215,0.03508476,3562.8,3561.8,0.9007]
[1754302570513,0.03508476,3562.8,3561.9,3.70819012]
[1754302570514,0.14,3562.4,3561.9,3.70819012]
[1754302570715,4.261,3562.3,3562.0,0.9007]
[1754302571022,4.261,3562.3,3562.1,0.473]
[1754302571209,4.261,3562.3,3562.0,3.23510258]
[1754302571408,0.14,3562.4,3562.1,3.70803275]
[1754302571582,4.261,3562.3,3562.2,3.84793766]
[1754302571788,0.14,3562.9,3562.5,2.80698549]
[1754302572006,4.261,3562.8,3562.6,0.9007]
[1754302572287,4.261,3562.8,3562.7,0.473]
[1754302573027,4.261,3562.8,3562.4,2.94709254]
[1754302573208,4.261,3562.8,3562.7,0.9007]
[1754302573404,4.261,3562.8,3562.7,3.70755996]
[1754302573717,4.261,3562.8,3562.7,0.473]
[1754302573920,4.261,3562.8,3562.7,0.9007]
[1754302575425,4.261,3562.8,3562.7,0.473]
[1754302577434,5.641,3562.8,3562.4,0.14]
[1754302577636,0.97498574,3562.7,3561.6,0.2089056]
[1754302577937,0.14,3562.3,3561.8,0.14]
[1754302578143,4.261,3562.2,3561.8,3.14]
[1754302578303,4.7529,3562.2,3561.8,0.14]
[1754302578608,4.709,3562.2,3561.8,0.14]
[1754302578818,0.4919,3562.1,3561.8,0.14]
[1754302579037,4.261,3562.2,3561.8,0.14]
[1754302579227,4.261,3562.2,3561.9,0.9007]
[1754302579428,4.261,3562.2,3562.0,0.473]
[1754302579736,4.261,3562.2,3561.9,0.4277]
[1754302579943,4.261,3562.2,3562.0,0.473]
[1754302582036,4.261,3562.2,3561.8,2.94753554]
[1754302582642,4.261,3562.2,3561.9,2.80747269]
[1754302582841,4.261,3562.2,3561.8,3.42053626]
[1754302583344,4.261,3562.2,3561.9,2.807483]
[1754302583638,4.261,3562.2,3561.8,3.42054224]
[1754302584140,4.261,3562.2,3561.9,2.80748835]
[1754302584540,4.261,3562.2,3561.8,3.42053523]
[1754302585060,4.261,3562.2,3562.1,2.80733275]
[1754302585222,4.261,3562.2,3562.0,2.80737803]
[1754302585424,4.261,3562.2,3562.1,2.80733275]
[1754302586958,4.261,3562.2,3562.1,3.28033275]
[1754302587159,0.9373,3563.1,3562.4,2.80709633]
[1754302587335,0.14,3562.9,3562.5,2.80701754]
[1754302587661,0.9373,3562.8,3562.5,2.80701754]
[1754302587856,0.14,3562.9,3562.4,2.94707453]
[1754302588038,0.9373,3562.7,3562.5,2.80701413]
[1754302588234,4.261,3562.6,3562.4,2.94709522]
[1754302588434,4.261,3562.6,3562.4,0.14]
[1754302589427,5.1983,3562.6,3562.4,0.14]
[1754302589628,4.261,3562.6,3562.4,0.14]
[1754302589837,1.3634,3562.5,3562.1,2.80725832]
[1754302590059,4.401,3562.6,3562.1,0.14]
[1754302590264,4.401,3562.6,3562.2,3.28213722]
[1754302590559,4.401,3562.6,3562.5,2.80701754]
[1754302590961,4.261,3562.6,3562.5,2.80701754]
[1754302591328,4.261,3562.6,3562.4,0.14]
[1754302591528,0.97238771,3562.5,3562.0,0.14]
[1754302591764,0.9373,3562.5,3562.1,2.8073237]
[1754302591965,0.9373,3562.4,3562.0,2.94739842]
[1754302592271,5.23338968,3562.3,3561.6,0.21223274]
[1754302592486,0.14,3562.1,3561.6,0.21223274]
[1754302592703,5.1983,3562.0,3561.5,2.94777431]
[1754302592855,0.97239362,3561.9,3561.5,0.35113329]
[1754302593054,1.0773,3561.8,3561.5,0.21113329]
[1754302593255,4.261,3561.7,3561.5,2.8077663]
[1754302593567,4.736,3561.7,3561.6,3.0]
[1754302593765,5.1983,3561.7,3561.6,3.0]
[1754302594311,5.1983,3561.7,3561.4,3.002]
[1754302594600,5.1983,3561.7,3561.4,2.80983655]
[1754302594803,5.1983,3561.7,3561.4,0.002]
[1754302595166,0.475,3561.6,3561.4,0.002]
[1754302595901,0.475,3561.6,3561.5,5.80780569]
[1754302596103,4.261,3561.7,3561.6,2.80772686]
[1754302596403,4.261,3561.7,3561.6,3.28262686]
[1754302596604,4.261,3561.7,3561.6,2.80772686]
[1754302598460,5.1983,3561.7,3561.5,0.14]
[1754302598660,0.03509658,3561.6,3561.5,0.14]
[1754302598886,5.1983,3561.7,3561.5,0.14]
[1754302599091,0.475,3561.6,3561.5,0.14]
[1754302599296,1.0773,3561.6,3561.4,0.21197969]
[1754302599755,0.14,3561.6,3561.4,0.21197969]
[1754302599987,0.9373,3561.5,3561.4,0.21197969]
[1754302601602,0.97239757,3561.5,3561.4,0.21197969]
[1754302601918,1.52802276,3561.5,3561.4,0.21197969]
[1754302603935,1.52802276,3561.5,3561.4,0.002]
[1754302604088,4.33582845,3561.5,3561.4,0.002]
[1754302604293,4.88582845,3561.5,3561.4,0.002]
[1754302606844,1.52802276,3561.5,3561.4,0.002]
[1754302607044,5.79002276,3561.5,3561.4,0.002]
[1754302607559,1.52802276,3561.5,3561.4,0.002]
[1754302607761,5.82512033,3561.5,3561.4,0.002]
[1754302607951,5.79002276,3561.5,3561.4,0.002]
[1754302614068,4.85272276,3561.5,3561.4,0.002]
[1754302614266,0.14,3561.6,3561.4,0.002]
[1754302614471,4.262,3561.5,3561.4,0.4769]
[1754302614848,4.262,3561.5,3561.4,0.002]
[1754302615474,4.262,3561.5,3561.4,0.4769]
[1754302616382,4.262,3561.5,3561.4,0.9403]
[1754302616783,0.14,3561.6,3561.4,0.9403]
[1754302617088,4.262,3561.5,3561.4,0.002]
[1754302617290,4.262,3561.5,3561.4,2.80988453]
[1754302617457,4.262,3561.6,3561.5,3.0]
[1754302617782,6.747,3562.1,3562.0,2.80741156]
[1754302617983,6.747,3562.1,3562.0,3.69811156]
[1754302618182,11.009,3562.1,3562.0,3.69811156]
[1754302618904,11.009,3562.1,3562.0,0.8907]
[1754302619296,11.009,3562.1,3562.0,3.69811156]
[1754302620175,4.262,3562.1,3562.0,3.69811156]
[1754302621508,4.262,3562.1,3562.0,4.73249896]
[1754302621870,4.262,3562.1,3562.0,7.73249896]
[1754302626313,4.261,3562.4,3562.3,2.80716685]
[1754302626721,4.261,3562.4,3562.3,2.94716685]
[1754302627520,4.261,3562.4,3562.3,3.40006685]
[1754302627716,4.261,3562.4,3562.3,3.83786685]
[1754302627906,4.261,3562.4,3562.3,3.40006685]
[1754302628419,4.261,3562.4,3562.3,2.94716685]
[1754302628621,4.261,3562.4,3562.3,0.14]
[1754302628819,4.261,3562.4,3562.3,2.94717513]
[1754302630091,4.261,3562.4,3562.3,0.14]
[1754302630286,5.1597,3562.4,3562.1,2.80728496]
[1754302630491,0.4672,3562.3,3562.2,0.14]
[1754302630703,4.7282,3562.4,3562.2,3.14]
[1754302630902,0.8987,3562.3,3562.2,3.14]
[1754302631317,4.261,3562.4,3562.2,3.14]
[1754302631591,4.261,3562.4,3562.2,0.14]
[1754302631792,4.261,3562.4,3562.2,3.14]
[1754302632323,4.7282,3562.4,3562.2,3.14]
[1754302633224,4.7282,3562.4,3562.2,2.94725294]
[1754302633522,4.261,3562.4,3562.3,2.80717513]
[1754302633700,0.14,3562.8,3562.5,2.80699794]
[1754302633905,4.261,3562.7,3562.4,3.25996016]
[1754302634306,4.261,3562.7,3562.4,2.80706016]
[1754302634488,4.261,3562.7,3562.5,2.80700017]
[1754302634687,4.261,3562.7,3562.4,3.4529]
[1754302634924,4.261,3562.7,3562.6,2.80693875]
[1754302635329,4.261,3562.7,3562.5,3.2599174]
[1754302635526,4.261,3562.7,3562.4,2.9470721]
[1754302635728,4.261,3562.7,3562.5,2.80701411]
[1754302635904,4.261,3562.7,3562.6,2.80693875]
[1754302636931,4.261,3562.7,3562.5,2.80699107]
[1754302637636,4.261,3562.7,3562.6,2.80693875]
[1754302637925,4.261,3562.7,3562.5,2.80698334]
[1754302638127,0.14,3562.9,3562.7,2.80680952]
[1754302638309,4.261,3562.8,3562.7,2.80680952]
[1754302638834,0.14,3563.0,3562.8,2.80677219]
[1754302639004,4.26,3562.9,3562.7,3.25973248]
[1754302639329,4.26,3562.9,3562.7,2.80683248]
[1754302639725,4.26,3562.8,3562.7,0.21036671]
[1754302640098,4.26,3562.8,3562.2,5.80718375]
[1754302640099,5.5847,3562.8,3562.2,5.80718375]
[1754302640292,0.8987,3562.7,3562.3,2.80714546]
[1754302640498,0.8987,3562.6,3562.4,2.8070753]
[1754302640823,4.26,3562.5,3562.4,2.8070753]
[1754302641496,4.26,3562.5,3562.4,2.80709633]
[1754302643042,5.1587,3562.5,3562.2,2.94721892]
[1754302643246,0.8987,3562.4,3562.2,2.94721892]
[1754302643446,0.8987,3562.4,3562.3,2.80717513]
[1754302643933,0.8987,3562.4,3562.2,2.94721776]
[1754302644138,0.8987,3562.4,3562.3,2.80717513]
[1754302644313,4.26,3562.5,3562.4,2.80709633]
[1754302644812,4.26,3562.5,3562.3,2.8071444]
[1754302645199,5.1587,3562.5,3562.2,2.94722162]
[1754302645399,4.6915,3562.5,3562.2,2.94722162]
[1754302645621,0.4672,3562.4,3562.2,0.14]
[1754302645797,0.4672,3562.3,3562.2,5.94723347]
[1754302646528,0.4315,3562.4,3562.3,2.80717513]
[1754302647037,0.9629,3562.4,3562.2,3.14]
[1754302647338,0.4975,3562.3,3562.2,3.14]
[1754302647542,0.4975,3562.3,3562.2,5.94724738]
[1754302647904,4.26,3562.5,3562.3,2.80717513]
[1754302648317,4.7575,3562.5,3562.3,2.80717513]
[1754302649634,5.2229,3562.5,3562.3,2.80717513]
[1754302650046,0.4975,3562.4,3562.2,3.14]
[1754302650206,4.26,3562.5,3562.2,3.14]
[1754302650406,0.9629,3562.4,3562.2,3.14]
[1754302650710,1.48519,3562.4,3562.2,0.14]
[1754302650910,0.52229,3562.4,3562.0,0.002]
[1754302651238,1.1029,3562.3,3562.0,0.002]
[1754302651440,4.26,3562.2,3562.0,0.002]
[1754302651655,5.2229,3562.2,3562.0,0.002]
[1754302651862,4.26,3562.2,3562.0,0.002]
[1754302652146,4.26,3562.2,3562.1,3.28833275]
[1754302653659,4.26,3562.2,3562.1,2.80733275]
[1754302654123,4.26,3562.2,3562.1,3.28833275]
[1754302654323,4.26,3562.2,3562.1,3.74243275]
[1754302654525,4.26,3562.2,3562.1,3.28833275]
[1754302655826,4.26,3562.2,3562.1,3.47652485]
[1754302656025,4.26,3562.2,3562.1,4.41162485]
[1754302656453,4.26,3562.2,3562.1,3.95752485]
[1754302656823,4.26,3562.5,3562.3,2.80714202]
[1754302657024,4.26,3562.5,3562.4,2.80709633]
[1754302657221,4.26,3562.5,3562.4,3.98953136]
[1754302657421,4.26,3562.5,3562.4,2.94709633]
[1754302657729,5.2229,3562.5,3562.4,2.80709633]
[1754302659566,4.26,3562.5,3562.4,2.80709633]
[1754302659723,4.26,3562.5,3562.4,3.28809633]
[1754302660578,4.26,3562.5,3562.4,2.80709633]
[1754302660721,5.2229,3562.5,3562.3,0.14]
[1754302660920,0.9629,3562.4,3562.3,0.14]
[1754302661257,0.9629,3562.4,3562.2,3.0]
[1754302661258,0.9979887,3562.4,3562.2,3.0]
[1754302661434,0.0350887,3562.4,3562.2,3.0]
[1754302661631,0.9629,3562.3,3562.0,0.002]
[1754302661815,4.26,3562.2,3562.0,0.002]
[1754302662015,5.2229,3562.2,3562.0,0.002]
[1754302662251,0.9629,3562.1,3562.0,0.002]
[1754302663260,1.1029,3562.1,3562.0,0.002]
[1754302663459,1.68704985,3562.1,3562.0,0.002]
[1754302665360,1.1029,3562.1,3562.0,0.002]
[1754302665772,4.26,3562.2,3562.0,0.002]
[1754302666752,4.7254,3562.2,3562.0,0.002]
[1754302666955,5.2229,3562.2,3562.0,0.002]
[1754302667326,0.4975,3562.1,3562.0,0.002]
[1754302667727,5.2229,3562.2,3562.0,2.80939189]
[1754302668260,4.26,3562.2,3562.0,2.80939189]
[1754302668729,4.26,3562.2,3562.0,0.002]
[1754302668930,4.26,3562.2,3562.0,2.80940922]
[1754302669565,4.26,3562.2,3562.0,0.002]
[1754302669926,4.7575,3562.2,3562.0,0.002]
[1754302670128,5.2229,3562.2,3562.0,0.002]
[1754302670673,5.2229,3562.2,3562.0,2.80939116]
[1754302670868,4.26,3562.2,3562.1,2.80733275]
[1754302671031,4.26,3562.2,3562.0,3.29038835]
[1754302671975,4.26,3562.2,3562.0,2.80938835]
[1754302672675,4.26,3562.2,3562.1,2.80733275]
[1754302672972,4.26,3562.2,3562.1,3.38301443]
[1754302673157,4.26,3562.2,3562.1,3.86401443]
[1754302673563,4.26,3562.2,3562.1,4.00401443]
[1754302673944,4.26,3562.2,3562.1,7.00401443]
[1754302676072,4.26,3562.2,3562.1,6.52301443]
[1754302677143,4.26,3562.2,3562.1,5.94733275]
[1754302677345,5.1927,3562.2,3562.1,5.94733275]
[1754302679880,4.7375,3562.2,3562.1,5.94733275]
[1754302680051,4.26,3562.2,3562.1,5.94733275]
[1754302680247,4.7375,3562.2,3562.1,5.94733275]
[1754302680493,5.66645,3562.2,3562.0,0.002]
[1754302680653,0.9327,3562.1,3562.0,0.002]
[1754302681488,0.14,3562.2,3562.0,0.002]
[1754302681780,4.7375,3562.1,3562.0,0.002]
[1754302681980,5.1927,3562.1,3562.0,2.80941156]
[1754302682472,0.4552,3562.4,3562.1,2.80726976]
[1754302682684,4.26,3562.3,3562.1,2.80726976]
[1754302682880,4.7152,3562.3,3562.1,2.80726976]
[1754302683060,0.4775,3562.2,3562.0,0.002]
[1754302683387,0.9327,3562.2,3562.1,2.80733275]
[1754302683885,0.9327,3562.2,3562.0,0.002]
[1754302685069,0.4552,3562.2,3562.0,0.002]
[1754302685270,0.4775,3562.1,3562.0,0.002]
[1754302685470,0.9327,3562.2,3562.0,0.002]
[1754302685669,0.9327,3562.1,3562.0,0.002]
[1754302685875,0.4775,3562.2,3562.0,0.002]
[1754302686174,0.4775,3562.1,3562.0,0.002]
[1754302686687,0.4775,3562.1,3562.0,2.80941156]
[1754302686887,4.26,3562.3,3562.0,2.80941156]
[1754302687449,4.26,3562.3,3562.0,3.27997832]
[1754302688086,4.26,3562.3,3562.0,2.80937832]
[1754302688087,4.7375,3562.3,3562.0,2.80937832]
[1754302688791,4.7152,3562.3,3562.0,0.002]
[1754302688991,5.1927,3562.3,3562.0,2.80940408]
[1754302689395,0.4775,3562.2,3562.0,0.002]
[1754302689805,0.4775,3562.2,3562.0,2.80938482]
[1754302689970,4.26,3562.3,3562.0,2.80938482]
[1754302690484,5.1927,3562.3,3562.0,2.80938482]
[1754302691898,4.26,3562.3,3562.2,2.80725394]
[1754302693162,4.26,3562.3,3562.1,5.94730057]
[1754302694412,4.7375,3562.3,3562.1,5.94730057]
[1754302694572,4.26,3562.3,3562.2,2.80725394]
[1754302695404,0.14,3562.6,3562.2,3.27785394]
[1754302695615,4.26,3562.5,3562.3,2.80715433]
[1754302696503,4.26,3562.5,3562.4,2.80709633]
[1754302697910,4.26,3562.5,3562.3,2.80716419]
[1754302698302,4.7375,3562.5,3562.3,2.80716419]
[1754302699413,4.7375,3562.5,3562.2,2.80725394]
[1754302699710,4.7375,3562.5,3562.3,2.80715999]
[1754302699890,4.26,3562.5,3562.3,2.80715999]
[1754302700091,4.26,3562.5,3562.4,2.80709633]
[1754302702016,4.26,3562.5,3562.4,3.27769633]
[1754302702218,4.26,3562.7,3562.6,2.8068786]
[1754302703225,4.7375,3562.7,3562.6,2.8068786]
[1754302703419,5.1927,3562.7,3562.6,2.8068786]
[1754302703624,5.1927,3562.7,3562.5,2.80698877]
[1754302703785,4.7152,3562.7,3562.6,2.80693875]
[1754302704428,5.1927,3562.7,3562.6,2.80693875]
[1754302704623,5.1927,3562.7,3562.5,2.80698847]
[1754302704824,4.26,3562.7,3562.6,2.80693875]
[1754302706326,4.26,3562.7,3562.6,3.27753875]
[1754302707127,4.259,3563.1,3563.0,2.80657653]
[1754302707639,0.001,3563.5,3563.3,2.80638733]
[1754302707816,4.259,3563.4,3563.3,2.80638733]
[1754302708009,0.001,3563.5,3563.3,2.80638733]
[1754302708010,0.001,3563.5,3563.4,2.80630858]
[1754302708829,0.001,3563.5,3563.3,2.80633234]
[1754302709231,0.4771,3563.5,3563.3,2.80633234]
[1754302709437,0.9461,3563.5,3563.3,2.80633234]
[1754302709761,0.001,3563.5,3563.4,2.80630858]
[1754302710452,0.001,3563.5,3563.4,3.26660858]
[1754302711011,0.001,3563.5,3563.4,2.80630858]
[1754302712345,0.4771,3563.5,3563.4,2.80630858]
[1754302713743,0.001,3563.5,3563.4,2.80630858]
[1754302714467,0.001,3563.5,3563.4,3.26660858]
[1754302714612,0.001,3563.5,3563.4,3.55583054]
[1754302714965,0.001,3563.5,3563.4,7.01613054]
[1754302715250,0.001,3563.5,3563.4,7.59493054]
[1754302715455,0.001,3563.5,3563.4,7.15613054]
[1754302715761,0.001,3563.5,3563.4,6.69583054]
[1754302717239,0.001,3563.5,3563.4,7.59493054]
[1754302717820,0.001,3563.5,3563.4,7.15613054]
[1754302718613,0.9461,3563.5,3563.4,6.69583054]
[1754302718818,0.001,3563.5,3563.4,6.69583054]
[1754302720939,0.001,3563.5,3563.4,7.15613054]
[1754302721145,0.001,3563.5,3563.4,6.69583054]
[1754302723729,0.001,3563.5,3563.4,3.88952196]
[1754302723944,0.9461,3563.5,3563.4,0.14]
[1754302724757,1.0861,3563.5,3562.9,0.14]
[1754302725049,0.14,3563.2,3562.9,0.843338]
[1754302725364,4.257,3563.1,3563.0,3.0]
[1754302725758,5.2021,3563.1,3563.0,3.0]
[1754302726386,4.257,3563.1,3563.0,2.80662363]
[1754302726946,4.257,3563.1,3563.0,2.94662363]
[1754302728368,4.257,3563.1,3563.0,0.14]
[1754302728555,4.7331,3563.1,3563.0,2.94662363]
[1754302728763,4.7331,3563.1,3563.0,5.94662363]
[1754302728985,5.2021,3563.1,3563.0,3.14]
[1754302729187,5.2021,3563.1,3563.0,3.142]
[1754302730191,0.9451,3563.1,3563.0,3.142]
[1754302730487,0.9451,3563.1,3563.0,5.94862363]
[1754302730849,0.9451,3563.1,3563.0,3.142]
[1754302731250,0.9451,3563.1,3563.0,5.94862363]
[1754302731683,0.9451,3563.1,3563.0,3.142]
[1754302733788,0.9451,3563.1,3563.0,5.94862363]
[1754302733984,4.7331,3563.3,3563.1,5.80653137]
[1754302735909,0.9451,3563.2,3563.0,0.142]
[1754302736296,0.9451,3563.1,3563.0,0.142]
[1754302736497,0.4761,3563.1,3563.0,2.94860943]
[1754302736803,0.469,3563.2,3563.1,2.80654486]
[1754302737107,4.7331,3563.3,3563.1,2.80654486]
[1754302737300,4.7331,3563.3,3563.0,2.94858852]
[1754302737618,0.4558,3563.2,3563.0,2.94858852]
[1754302737911,0.9003,3563.2,3563.1,2.80654486]
[1754302738078,4.257,3563.3,3563.1,2.80654486]
[1754302738512,4.257,3563.3,3563.0,3.142]
[1754302738813,4.257,3563.3,3563.1,2.80647926]
[1754302740476,0.9003,3563.2,3563.0,5.94858598]
[1754302740973,0.9003,3563.1,3563.0,5.94858598]
[1754302741406,4.7128,3563.3,3563.1,2.80649099]
[1754302743423,4.7128,3563.3,3563.1,3.0]
[1754302743424,4.257,3563.3,3563.1,3.0]
[1754302743731,0.9003,3563.2,3563.0,0.142]
[1754302744235,0.9003,3563.2,3563.1,3.0]
[1754302744431,0.9003,3563.2,3563.0,0.002]
[1754302744577,4.257,3563.2,3563.0,0.002]
[1754302744784,4.257,3563.2,3563.0,0.4832]
[1754302744999,4.257,3563.2,3563.1,3.0]
[1754302746522,4.7128,3563.2,3563.1,3.0]
[1754302747389,4.257,3563.2,3563.1,5.80654486]
[1754302747697,4.257,3563.2,3563.1,7.14926241]